[Event "GCT Superbet Rapid Poland 2025"]
[Site "Warsaw"]
[Date "2025.04.27"]
[Round "4.1"]
[White "Firouzja, Alireza"]
[Black "Praggnanandhaa R"]
[Result "1-0"]
[ECO "A06"]
[WhiteElo "2757"]
[BlackElo "2758"]
[Annotator "TA"]
[PlyCount "115"]
[EventDate "2025.??.??"]
[EventType "rapid"]
[TimeControl "1500+10"]

{[%evp 9,115,17,11,0,0,0,2,0,0,-7,-6,-12,0,0,6,0,14,17,32,29,24,29,37,17,10,30,14,17,22,17,32,17,19,9,32,9,9,9,12,24,12,20,24,0,0,0,18,6,18,8,17,0,14,10,10,10,31,0,0,0,76,68,80,67,63,8,7,9,5,3,10,10,10,0,103,87,102,85,87,0,0,4,38,0,0,0,0,0,0,0,0,0,0,0,0,0,0,0,0,-20,0,0,6131,5712,29977,29978,29976,29977]} 1. Nf3 {[%emt 0:00:02] Chessbase - Stockfish 17} d5 {[%emt 0:00:08]} 2. b3 {[%emt 0:00:03]} c5 {[%emt 0:00:08]} 3. e3 {[%emt 0:00:03]} Nf6 {[%emt 0:00:05]} 4. Bb2 {[%emt 0:00:06]} g6 {[%emt 0:00:02]} 5. c4 {[%emt 0:02:17]} dxc4 {[%emt 0:00:02]} 6. bxc4 {[%emt 0:00:03] A06: Réti Opening: 1 Nf3 d5.} Bg7 {[%emt 0:00:02]} 7. Be2 {[%emt 0:00:13]} O-O {[%emt 0:00:04]} 8. O-O {[%emt 0:00:05] The position is equal.} b6 {[%emt 0:00:21]} 9. d3 {[%emt 0:00:06]} Bb7 {[%emt 0:00:07]} 10. Qc2 {[%emt 0:01:18]} ({RR} 10. Nbd2 Nc6 11. Ne5 Qc7 12. f4 Rad8 13. Qb3 Ne8 14. Ndf3 Na5 15. Qc2 Nd6 16. e4 f6 17. Ng4 Nc6 18. Rae1 Nf7 19. f5 gxf5 20. exf5 Kh8 21. Qb3 Qd7 22. Ne3 Bh6 23. Nd5 Nd6 24. g4 Rg8 {Keymer,V (2733)-Warmerdam,M (2646) Wijk aan Zee 2025 [Chessbase - Stockfish 17] ½-½ (67)}) 10... Nc6 {[%emt 0:01:04]} 11. Ne5 $146 {[%emt 0:00:43]} (11. Rd1 Qc7 12. Nc3 Rac8 13. Rac1 Rfd8 14. Qb1 Qb8 15. Qa1 Ne8 16. Ng5 Ne5 17. f4 {½-½ Levin,G (2435)-Postny,E (2597) ISR-ch op Acre 2024 (5)}) ({RR} 11. Rd1 Qc7 12. Nc3 Rac8 13. Rac1 Rfd8 14. Qb1 Qb8 15. Qa1 Ne8 16. Ng5 Ne5 17. f4 Nd7 18. Bf3 Ndf6 19. h3 Rd7 20. Bxb7 Qxb7 21. Nf3 Rdd8 22. a4 Nc7 23. a5 Nfe8 24. Rb1 Rb8 25. Ne4 Na6 {Levin,G (2435)-Postny,E (2597) Acre ISR 2024 ½-½ (64)}) ({RR} 11. Rd1 Qc7 12. Nc3 Rac8 13. Rac1 Rfd8 14. Qb1 Qb8 15. Qa1 Ne8 16. Ng5 Ne5 17. f4 Nd7 18. Bf3 Ndf6 19. h3 Rd7 20. Bxb7 Qxb7 21. Nf3 Rdd8 22. a4 Nc7 23. a5 Nfe8 24. Rb1 Rb8 25. Ne4 Na6 {Levin,G (2435)-Postny,E (2597) Acre ISR 2024 ½-½ (64)}) ({RR} 11. Rd1 Qc7 12. Nc3 Rac8 13. Rac1 Rfd8 14. Qb1 Qb8 15. Qa1 Ne8 16. Ng5 Ne5 17. f4 Nd7 18. Bf3 Ndf6 19. h3 Rd7 20. Bxb7 Qxb7 21. Nf3 Rdd8 22. a4 Nc7 23. a5 Nfe8 24. Rb1 Rb8 25. Ne4 Na6 {Levin,G (2435)-Postny,E (2597) Acre ISR 2024 ½-½ (64)}) 11... Qc7 {[%emt 0:01:24]} 12. Nxc6 {[%emt 0:00:03]} Qxc6 {[%emt 0:01:51][%csl Gb7][%cal Rc6g2]} 13. Bf3 {[%emt 0:00:06]} Qc7 {[%emt 0:00:13]} (13... Qd7 14. Bxb7 Qxb7 15. Nd2 Qc7) 14. Nd2 {[%emt 0:00:57]} (14. Bxb7 Qxb7 15. Nd2 Qc7 16. Nf3) 14... Rad8 {[%emt 0:01:38]} 15. Bxb7 {[%emt 0:02:09]} (15. a4 {simplifies} Bxf3 16. Nxf3 a5 17. Be5) 15... Ng4 {[%emt 0:02:46][%csl Gg4][%cal Rc7h2] [#]} 16. Nf3 {[%emt 0:00:04]} Bxb2 {[%emt 0:00:04]} 17. Qxb2 {[%emt 0:00:04]} Qxb7 {[%emt 0:00:02]} 18. Rfd1 {[%emt 0:00:43]} Rd6 {[%emt 0:00:38]} 19. a4 {[%emt 0:00:19]} Rfd8 {[%emt 0:01:30]} 20. Ra3 {[%emt 0:00:05]} a5 {[%emt 0:03:11]} 21. Rb3 {[%emt 0:01:10]} Nf6 {[%emt 0:01:22]} 22. h3 {[%emt 0:01:10]} Qc6 {[%emt 0:02:00]} 23. Ne5 {[%emt 0:00:52]} Qc7 {[%emt 0:00:58]} 24. Rb1 {[%emt 0:01:49][%cal Rb3b6]} Nd7 {[%emt 0:00:18]} 25. Ng4 {[%emt 0:00:57] Threatening mate with Nh6+.} Nf6 {[%emt 0:01:35]} 26. Ne5 {[%emt 0:04:00][%cal Rb3b6]} Nd7 {[%emt 0:00:03]} 27. Nf3 {[%emt 0:00:12]} Rc6 {[%emt 0:00:41]} 28. Rb5 {[%emt 0:01:23]} Qd6 {[%emt 0:01:38]} 29. Qc3 {[%emt 0:00:14]} Qc7 {[%emt 0:00:45]} 30. R1b3 {[%emt 0:01:02]} Nb8 {[%emt 0:01:16]} 31. Qe5 {[%emt 0:06:07]} Rdd6 {[%emt 0:02:10]} 32. Qg3 {[%emt 0:00:58]} Nd7 {[%emt 0:01:14]} 33. Nd2 {[%emt 0:00:30]} Nf6 {[%emt 0:00:10]} 34. Nf3 {[%emt 0:00:09]} Qd8 {[%emt 0:00:52]} (34... Nd7 $11) 35. Ne5 $16 {[%emt 0:00:05]} Rc8 {[%emt 0:00:01] [#]} 36. Qf4 $1 $36 {[%emt 0:00:12][%mdl 2048] Black is under pressure. White is more active.} Qc7 {[%emt 0:00:08]} 37. g4 {[%emt 0:00:14]} (37. d4 $14) 37... Rf8 $1 $11 {[%emt 0:00:14]} 38. d4 {[%emt 0:00:44]} cxd4 {[%emt 0:00:12]} 39. exd4 {[%emt 0:00:02]} Nd7 {[%emt 0:00:03]} 40. Nxd7 {[%emt 0:00:18]} Qxd7 {[%emt 0:00:07]} 41. d5 {[%emt 0:00:01]} (41. Rxb6 Rxd4 42. Qf3 Rxc4 $15 (42... Qxa4 43. c5 $17)) 41... e6 {[%emt 0:00:40]} (41... Rc8 $11 {remains equal.}) 42. Rxb6 $16 {[%emt 0:00:18]} Rxb6 {[%emt 0:00:04]} 43. Rxb6 {[%emt 0:00:02]} exd5 {[%emt 0:00:03]} 44. cxd5 {[%emt 0:00:20]} ({White should play} 44. c5 $16) 44... Qxd5 {[%emt 0:00:02][%mdl 4096] Endgame KQR-KQR} 45. Rb5 {[%emt 0:00:01]} Qa8 {[%emt 0:00:24]} 46. h4 {[%emt 0:00:19]} Re8 {[%emt 0:00:16] (  ...Re1+)} 47. Kh2 {[%emt 0:00:01]} Qe4 {[%emt 0:00:12]} 48. Kg3 {[%emt 0:00:16] aiming for Qxe4.} Qh1 {[%emt 0:00:09]} 49. Qf3 {[%emt 0:00:12]} Qg1+ {[%emt 0:00:08]} 50. Kh3 {[%emt 0:00:02][%cal Oh4h5]} Qf1+ {[%emt 0:00:09]} 51. Kg3 {[%emt 0:00:19][%cal Oh4h5]} Qg1+ {[%emt 0:00:10]} 52. Kh3 {[%emt 0:00:02][%cal Oh4h5]} Qf1+ {[%emt 0:00:01]} 53. Kg3 {[%emt 0:00:17][%cal Oh4h5]} Rd8 {[%emt 0:00:19]} 54. Rb3 {[%emt 0:00:11] Inhibits Rd3.} Qg1+ {[%emt 0:00:09]} 55. Kh3 {[%emt 0:00:03]} Rd4 $2 {[%emt 0:00:16][%mdl 8192] [#]} (55... Qa1 $11) 56. Rb7 $1 $18 {[%emt 0:00:10]} Qf1+ {[%emt 0:00:08]} 57. Kh2 {[%emt 0:00:02]} Qc4 {[%emt 0:00:12]} 58. Qf6 {[%emt 0:00:20] Weighted Error Value: White=0.08 (flawless) /Black=0.30 Loses game: 	--- 	Black=1 Mistake: 	White=2 	Black=2 Inaccurate: 	White=2 	Black=2 OK: 	White=19 	Black=23 Best: 	White=3 	Black=2 Strong: 	White=2 	Black=1} 1-0

[Event "GCT Superbet Rapid Poland 2025"]
[Site "Warsaw"]
[Date "2025.04.27"]
[Round "4.2"]
[White "Gavrilescu, David"]
[Black "Duda, Jan-Krzysztof"]
[Result "1/2-1/2"]
[ECO "B83"]
[WhiteElo "2554"]
[BlackElo "2739"]
[Annotator "TA"]
[PlyCount "158"]
[EventDate "2025.??.??"]
[EventType "rapid"]
[TimeControl "1500+10"]

{[%evp 15,157,0,0,0,0,0,27,13,41,39,30,15,11,11,16,11,0,-2,-5,-4,-11,-29,-4,-18,0,0,11,14,18,12,11,17,12,23,16,14,19,8,8,10,4,14,10,14,14,6,8,7,8,0,0,0,0,0,0,0,0,0,0,0,0,0,0,-18,-8,-25,0,0,0,0,0,0,0,0,0,0,0,0,0,0,0,0,0,0,0,0,0,0,0,0,0,0,0,0,0,0,0,0,0,0,0,0,0,0,0,0,0,0,0,0,0,0,0,0,0,-8,0,-8,0,-8,-8,-8,-8,-8,-8,-8,-8,-8,-8,-8,0,0,0,0,0,0,0,0,0,0,0,0,0,0]} 1. e4 {[%emt 0:00:07]} c5 {[%emt 0:00:02]} 2. Nf3 {[%emt 0:00:05]} e6 {[%emt 0:00:03]} 3. Be2 {[%emt 0:00:12]} Nc6 {[%emt 0:00:12]} 4. O-O {[%emt 0:00:08]} Nf6 {[%emt 0:00:23]} 5. Nc3 {[%emt 0:00:10]} Be7 {[%emt 0:00:20]} 6. d4 {[%emt 0:00:14]} cxd4 {[%emt 0:00:04]} 7. Nxd4 {[%emt 0:00:05]} d6 {[%emt 0:00:06]} 8. Nxc6 {[%emt 0:01:06]} bxc6 {[%emt 0:00:02]} 9. Qd3 {[%emt 0:00:06] B83: Sicilian Scheveningen: 6 Be2, lines without ...a6.} O-O {[%emt 0:00:38]} ({RR} 9... d5 10. Qg3 O-O 11. Bh6 Ne8 12. Bf4 Bh4 13. Qf3 Bg5 14. Bxg5 Qxg5 15. Na4 Nf6 16. Bd3 e5 17. Rfe1 Re8 18. Qg3 h6 19. c3 a5 20. Rad1 Rb8 21. b3 Nh5 22. Qxg5 hxg5 23. Bc2 Nf6 24. h3) ({RR} 9... d5 10. Qg3 O-O 11. Bh6 Ne8 12. Bf4 Bh4 13. Qf3 Bg5 14. Bxg5 Qxg5 15. Na4 Nf6 16. Bd3 e5 17. Rfe1 Re8 18. Qg3 h6 19. c3 a5 20. Rad1 Rb8 21. b3 Nh5 22. Qxg5 hxg5 23. Bc2 Nf6 24. h3 {Firouzja,A (2777)-Sarana,A (2682) Douglas IOM 2023 ½-½ (58)}) 10. Qg3 {[%emt 0:00:22]} a5 $146 {[%emt 0:01:00]} (10... Kh8 11. a4 ({RR} 11. Rd1 Qc7 12. b3 e5 13. Kh1 Be6 14. f4 Rad8 15. Bb2 exf4 16. Qxf4 Nd7 17. Rd2 Ne5 18. Rf1 h6 19. Qg3 f5 20. exf5 Rxf5 21. Rxf5 Bxf5 22. Nd1 Bg5 23. Ne3 Bxe3 24. Qxe3 Ng6 25. Qxh6+) 11... d5 12. Bd3 a5 13. Re1 Ba6 14. Bxa6 Rxa6 15. Bf4 Nh5 16. Qd3 Rb6 {½-½ Esipenko,A (2695)-Kobalia,M (2538) Titled Tuesday intern op 04th Feb Early blitz 2025 (10)}) ({RR} 10... e5 11. f4 Nd7 12. Bg4 Bh4 13. Qh3 Bf6 14. Ne2 exf4 15. Bxf4 Bxb2 16. Rad1 Nf6 17. Bxc8 Qxc8 18. Qb3 Rb8 19. Qa4 Be5 20. Bxe5 dxe5 21. Ng3 Qc7 22. h3 Rfd8 23. Nf5 g6 24. Qxc6 Qxc6 25. Ne7+ {Salinas Herrera,P (2479)-Yu,Y (2703) Budapest HUN 2024 0-1 (54)}) ({RR} 10... Kh8 11. e5 dxe5 12. Qxe5 Nd5 13. Rd1 Bd6 14. Qh5 Nxc3 15. bxc3 Qc7 16. Rd4 g6 17. Qh6 f6 18. Be3 e5 19. Rd2 Be6 20. Rad1 Rfd8 21. Bxa7 c5 22. Bf3 Bf8 23. Bxa8 Rxa8 24. Qh4 g5 25. Qh5) ({RR} 10... Nd7 11. Be3 Rb8 12. Na4 Rb4 13. b3 Rxe4 14. Bf3 Rh4 15. Bxc6 Ne5 16. Bb5 Rg4 17. Qh3 Bb7 18. f3 Rg6 19. Rad1 Qa5 20. Be2 Bc6 21. Rd4 Qc7 22. Nb2 d5 23. Rdd1 Bb7 24. Bf4 Qxc2 25. Rd2) ({RR} 10... Kh8 11. a4 d5 12. Bd3 a5 13. Re1 Ba6 14. Bxa6 Rxa6 15. Bf4 Nh5 16. Qd3 Rb6 17. Bc1 Nf6 18. b3 Bb4 19. Rd1 Rb8 20. Bf4 Rc8 21. exd5 cxd5 22. Nb5 Ne4 23. c4 Qf6 24. Be3 Nc5 25. Qc2 {Esipenko,A (2695)-Kobalia,M (2538) chess.com INT 2025 ½-½ (47)}) ({RR} 10... Nd7 11. Be3 Rb8 12. Na4 Rb4 13. b3 Rxe4 14. Bf3 Rh4 15. Bxc6 Ne5 16. Bb5 Rg4 17. Qh3 Bb7 18. f3 Rg6 19. Rad1 Qa5 20. Be2 Bc6 21. Rd4 Qc7 22. Nb2 d5 23. Rdd1 Bb7 24. Bf4 Qxc2 25. Rd2 {Jamrich,G (2207)-Kantor,G (2403) Budapest 2015 0-1 (36)}) ({RR} 10... Kh8 11. Rd1 Qc7 12. b3 e5 13. Kh1 Be6 14. f4 Rad8 15. Bb2 exf4 16. Qxf4 Nd7 17. Rd2 Ne5 18. Rf1 h6 19. Qg3 f5 20. exf5 Rxf5 21. Rxf5 Bxf5 22. Nd1 Bg5 23. Ne3 Bxe3 24. Qxe3 Ng6 25. Qxh6+ {Siddharth,J (2516)-Sartbayev,A (1702) Almaty KAZ 2024 1-0}) 11. b3 {[%emt 0:04:36] White has an edge.} Ba6 {[%emt 0:00:25]} 12. Bxa6 {[%emt 0:00:44]} (12. Bh6 $5 Ne8 $8 13. Bxa6 Rxa6 14. Rad1 $14) 12... Rxa6 {[%emt 0:00:02]} 13. e5 {[%emt 0:04:24]} dxe5 {[%emt 0:00:04]} 14. Qxe5 {[%emt 0:00:13]} Nd5 {[%emt 0:02:12][%cal Bf6d5,Bd5b4,Bb4d3][%mdl 32] [#]} 15. Ne4 {[%emt 0:03:30]} Qb8 {[%emt 0:00:48]} 16. Qxb8 {[%emt 0:00:50]} Rxb8 {[%emt 0:00:02]} 17. c4 {[%emt 0:00:51]} Nb4 {[%emt 0:04:04]} 18. Bf4 {[%emt 0:01:02]} Rd8 {[%emt 0:00:33]} 19. Rfd1 {[%emt 0:01:47]} Nd3 {[%emt 0:03:09]} 20. Bd6 {[%emt 0:02:31]} Bxd6 {[%emt 0:00:56]} 21. Rxd3 {[%emt 0:00:06]} Be7 {[%emt 0:00:09]} ({Avoid the trap} 21... Bxh2+ $2 22. Kxh2 Rxd3 23. Nc5 $18) 22. Rxd8+ {[%emt 0:00:17]} Bxd8 $11 {[%emt 0:00:01][%mdl 4096] Endgame KRB-KRN} 23. Rd1 {[%emt 0:00:07]} Be7 {[%emt 0:01:48]} 24. Rd7 {[%emt 0:01:08]} Kf8 {[%emt 0:00:02]} 25. c5 {[%emt 0:00:50]} Ra8 {[%emt 0:00:03]} 26. g3 {[%emt 0:01:33]} Rd8 {[%emt 0:05:35]} 27. Ra7 {[%emt 0:00:58]} f5 {[%emt 0:00:20]} 28. Nd6 $1 {[%emt 0:00:02]} Bxd6 {[%emt 0:00:06]} 29. cxd6 {[%emt 0:00:02]} Rxd6 {[%emt 0:00:01]} 30. Rxa5 {[%emt 0:00:02] KR-KR} Ke7 {[%emt 0:00:58]} 31. Ra7+ {[%emt 0:00:23]} Kf6 {[%emt 0:00:01]} 32. Rc7 {[%emt 0:00:06]} Rd2 {[%emt 0:00:37]} 33. Rxc6 {[%emt 0:01:03]} Rxa2 {[%emt 0:00:03]} 34. h4 {[%emt 0:00:03]} Rb2 {[%emt 0:00:07]} 35. Rb6 {[%emt 0:00:02]} g6 {[%emt 0:00:18]} 36. Kg2 {[%emt 0:00:03]} h6 {[%emt 0:00:05]} 37. Kf3 {[%emt 0:00:23]} g5 {[%emt 0:00:07]} 38. hxg5+ {[%emt 0:00:04]} hxg5 {[%emt 0:00:01]} 39. Ke3 {[%emt 0:00:11]} Rc2 {[%emt 0:00:36]} 40. Rb8 {[%emt 0:00:20]} Rc3+ {[%emt 0:00:10]} 41. Kd2 {[%emt 0:00:01] The position is equal.} Rc5 {[%emt 0:01:13]} 42. Rd8 {[%emt 0:00:37]} Ke7 {[%emt 0:00:56]} 43. Rd3 {[%emt 0:00:10]} e5 {[%emt 0:00:19]} 44. Rc3 {[%emt 0:00:38]} Rd5+ {[%emt 0:00:27]} 45. Kc2 {[%emt 0:00:07]} e4 {[%emt 0:00:21]} 46. Rc6 {[%emt 0:00:10]} Ra5 {[%emt 0:00:39] [#]} 47. Kd2 {[%emt 0:00:11]} Rd5+ {[%emt 0:01:43]} 48. Ke2 {[%emt 0:00:02]} Rd3 {[%emt 0:00:08]} 49. Rg6 {[%emt 0:00:12]} g4 {[%emt 0:00:35]} 50. Rb6 {[%emt 0:00:03]} Rf3 {[%emt 0:00:09]} 51. b4 {[%emt 0:00:26]} e3 {[%emt 0:00:04]} 52. fxe3 {[%emt 0:00:01]} Rxg3 {[%emt 0:00:01]} 53. b5 {[%emt 0:00:19]} Rg2+ {[%emt 0:00:12]} 54. Kf1 {[%emt 0:00:05]} Rb2 {[%emt 0:00:06]} 55. Kg1 {[%emt 0:00:17]} Re2 {[%emt 0:00:07]} 56. Rc6 {[%emt 0:00:12]} Rxe3 {[%emt 0:00:13] And now ...Re6 would win.} 57. b6 $1 {[%emt 0:00:02]} Rb3 {[%emt 0:00:09]} 58. Rh6 {[%emt 0:00:18]} Kf7 {[%emt 0:00:29]} 59. Kg2 {[%emt 0:00:08]} f4 {[%emt 0:00:42]} 60. Rh4 {[%emt 0:00:08]} Rb2+ {[%emt 0:00:04]} 61. Kf1 {[%emt 0:00:07]} Rb1+ {[%emt 0:00:12]} 62. Kg2 {[%emt 0:00:15]} Rb2+ {[%emt 0:00:13]} 63. Kf1 {[%emt 0:00:02]} Kg6 {[%emt 0:00:11]} 64. Rxg4+ {[%emt 0:00:05]} Kf5 {[%emt 0:00:01]} 65. Rh4 {[%emt 0:00:18]} Rb3 {[%emt 0:00:19]} 66. b7 {[%emt 0:00:09]} Ke4 {[%emt 0:00:08]} 67. Rh3 {[%emt 0:00:20]} Rxb7 {[%emt 0:00:11]} 68. Ra3 {[%emt 0:00:02]} Kf5 {[%emt 0:00:04]} 69. Kf2 {[%emt 0:00:06]} Kg4 {[%emt 0:00:01]} 70. Rc3 {[%emt 0:00:02]} Rb2+ {[%emt 0:00:03]} 71. Kf1 {[%emt 0:00:01]} Rh2 {[%emt 0:00:05]} 72. Ra3 {[%emt 0:00:03]} Rh3 {[%emt 0:00:28]} 73. Rxh3 {[%emt 0:00:07]} Kxh3 {[%emt 0:00:01] KP-K. Black is a pawn up.} 74. Kf2 {[%emt 0:00:01]} Kg4 {[%emt 0:00:01][%cal Bh3g4,Bg4f4,Bf4g3,Bg3f3][%mdl 32]} 75. Kg2 {[%emt 0:00:01]} f3+ {[%emt 0:00:01][%cal Bf4f3,Bf3f2][%mdl 32]} 76. Kf2 {[%emt 0:00:00]} Kf4 {[%emt 0:00:01]} 77. Kf1 {[%emt 0:00:02]} Kg3 {[%emt 0:00:02] (  ...f2)} 78. Kg1 {[%emt 0:00:01]} f2+ {[%emt 0:00:01]} 79. Kf1 {[%emt 0:00:01]} Kf3 {Weighted Error Value: White=0.02 (flawless) /Black=0.04 (flawless)  Inaccurate:   	---    	Black=2   OK:     	White=36  	Black=28   Best:    	White=7   	Black=1   Strong:    	White=2   	---} 1/2-1/2

[Event "GCT Superbet Rapid Poland 2025"]
[Site "Warsaw"]
[Date "2025.04.27"]
[Round "4.4"]
[White "Topalov, Veselin"]
[Black "Aravindh, Chithambaram VR."]
[Result "0-1"]
[ECO "C78"]
[WhiteElo "2717"]
[BlackElo "2749"]
[Annotator "TA"]
[PlyCount "84"]
[EventDate "2025.??.??"]
[EventType "rapid"]
[TimeControl "1500+10"]

{[%evp 22,84,0,8,40,0,25,45,34,0,13,-48,-43,-104,-82,-82,-79,-93,-93,-66,-91,-158,-147,-135,-123,-154,-145,-283,-262,-252,-204,-347,-112,-104,-103,-96,-88,-107,-24,-28,-11,-21,-8,-13,0,0,0,-97,-46,-78,-56,-126,-150,-133,-147,-280,-273,-275,-259,-29975,-29978,-29976,-29981,-29977,-29978]} 1. e4 {[%emt 0:00:02]} e5 {[%emt 0:00:07]} 2. Nf3 {[%emt 0:00:02]} Nc6 {[%emt 0:00:02]} 3. Bb5 {[%emt 0:00:02]} a6 {[%emt 0:00:02]} 4. Ba4 {[%emt 0:00:01]} Nf6 {[%emt 0:00:04]} 5. O-O {[%emt 0:00:06]} b5 {[%emt 0:00:04]} 6. Bb3 {[%emt 0:00:02]} Bc5 {[%emt 0:00:04]} 7. c3 {[%emt 0:00:07]} d6 {[%emt 0:00:02]} 8. d4 {[%emt 0:00:05]} Bb6 {[%emt 0:00:04]} 9. a4 {[%emt 0:00:06]} Bb7 {[%emt 0:00:03]} 10. Re1 {[%emt 0:00:47]} O-O {[%emt 0:00:07]} 11. Bg5 {[%emt 0:00:06]} h6 {[%emt 0:00:07]} 12. Bh4 {[%emt 0:00:14]} b4 {[%emt 0:00:14] C78: Ruy Lopez: Archangelsk and Möller Defences.} 13. h3 $146 {[%emt 0:00:11]} ({RR} 13. Qd3 Na5 14. Nbd2 bxc3 15. bxc3 Nxb3 16. Nxb3 a5 17. Rad1 Qe7 18. c4 c5 19. dxe5 dxe5 20. Qd6 Qxd6 21. Rxd6 Bc7 22. Rdd1 Nxe4 23. Rd7 Rac8 24. Nxe5 Rfe8 25. Nd3 Bc6 26. Re7 g5 27. Rxe8+ Rxe8 {Song,Y (2317)-Ju,W (2560) Fuling 2022 0-1 (54)}) ({RR} 13. Bd5 g5 14. Bxc6 Bxc6 15. Nxg5 hxg5 16. Bxg5 Kg7 17. Re3 Qd7 18. Rg3 Nh7 19. Qh5 f6 20. Bxf6+ Kxf6 21. Rg6+ Ke7 22. Rg7+ Kd8 23. Rxd7+ Kxd7 24. Qxh7+ Kc8 25. a5 Ba7 26. Nd2 bxc3 27. bxc3 exd4 {Dominguez Perez,L (2748)-Sindarov,J (2674) chess.com INT 2024 0-1 (40)}) ({RR} 13. d5 Na5 14. cxb4 Nxb3 15. Qxb3 g5 16. Bg3 Nh5 17. Na3 f5 18. exf5 Qf6 19. a5 Ba7 20. b5 Qxf5 21. b6 Nxg3 22. bxa7 g4 23. fxg3 gxf3 24. gxf3 Qxf3 {½-½ (24) Aryan,C (2632)-Madaminov,M (2512) Biel SUI 2024}) ({RR} 13. dxe5 Nxe5 14. Nxe5 dxe5 15. Nd2 bxc3 16. bxc3 Qe7 17. Nc4 Rad8 18. Qf3 Bc8 19. Qg3 Rfe8 20. Rad1 Rxd1 21. Rxd1 Bb7 22. Nxb6 cxb6 23. Rd7 Qxd7 24. Bxf6 g5 25. h4 g4 26. Bxe5 Bxe4 27. Qf4 Qf5 {Horvath,R (2025)-Kilgus,G (2393) Graz 2022 0-1 (41)}) 13... bxc3 {[%emt 0:03:12]} 14. bxc3 {[%emt 0:00:10]} Re8 $146 {[%emt 0:00:03] White is slightly better.} (14... g5 15. Bg3 Qe7 16. d5 Na5 17. Ba2 c6 18. c4 Rac8 19. Nbd2 cxd5 20. cxd5 Rc3 {0-1 Meszaros,M (2376)-Friedel,J (2498) WMSG Blitz Team 1st 2008 (11)}) 15. d5 {[%emt 0:04:07][%cal Oh4f6] and Bxf6! should not be overlooked} Na5 {[%emt 0:04:58]} 16. Ba2 {[%emt 0:01:47]} (16. Bc2 $11) 16... g5 $15 {[%emt 0:01:32]} 17. Nxg5 {[%emt 0:01:12]} hxg5 $17 {[%emt 0:00:03]} 18. Bxg5 {[%emt 0:00:01][%cal Oe1e3]} Kg7 {[%emt 0:00:03]} (18... Bxf2+ $2 19. Kxf2 Kh8 (19... Nxe4+ $2 20. Rxe4 Qd7 21. Nd2 $18) 20. Bh4 $18) 19. Qf3 {[%emt 0:02:58]} Rh8 {[%emt 0:00:49]} 20. Nd2 {[%emt 0:00:14]} Bc8 {[%emt 0:07:25]} 21. Nf1 {[%emt 0:01:59]} (21. h4) 21... Kg6 $1 {[%emt 0:06:13]} 22. h4 {[%emt 0:04:36]} Rh5 {[%emt 0:01:27]} 23. Qg3 {[%emt 0:00:43]} Bd7 {[%emt 0:00:24][%cal Og6g7]} 24. Re3 {[%emt 0:04:12]} (24. Rab1 $17 {was called for.}) 24... Bxe3 $19 {[%emt 0:00:50]} 25. Nxe3 {[%emt 0:00:12]} Nxe4 {[%emt 0:00:39]} (25... Bxa4 26. Bb1 Rb8 27. f4 Rxb1+ 28. Rxb1 Nxe4 29. f5+ Kg7 30. f6+ (30. Qg4 Rxg5 31. hxg5 Qxg5 $18) 30... Kh8 (30... Nxf6 $2 31. Rf1 $18) 31. Qg4 $18) 26. Bb1 {[%emt 0:00:20]} (26. Bxd8+ {was forced.} Nxg3 27. Bxc7 Ne2+ 28. Kf1 Nxc3 29. Bxa5 Nxa2 (29... Nxa4 30. g3 $17) 30. g3) 26... Rxg5 $2 {[%emt 0:00:02]} (26... f5 $1 $19 {and Black stays clearly on top.} 27. Bxe4 Rxg5 28. Bxf5+ (28. hxg5 $2 fxe4 29. f4 exf4 $19) 28... Bxf5 29. hxg5 Bd7 (29... Qxg5 $2 30. Nxf5 Kxf5 31. Qh3+ Qg4 32. Qh6 $19)) 27. hxg5 $17 {[%emt 0:00:02] [#]} Qxg5 $1 {[%emt 0:00:05]} 28. Bxe4+ {[%emt 0:00:17]} (28. Qxg5+ $6 Kxg5 29. Bxe4 Nb3 $11) 28... f5 {[%emt 0:00:01][%cal Og5g3] Strongly threatening ...Qxg3!.} 29. Bc2 {[%emt 0:01:41]} Qxg3 {[%emt 0:00:11] Successful Defense Black} (29... Nb7 $1 $17 30. Qh3 Nc5) 30. fxg3 $11 {[%emt 0:00:01]} Kg5 {[%emt 0:00:01]} 31. Rb1 $1 {[%emt 0:00:17] Prevents Nb7} f4 {[%emt 0:00:52]} 32. Nf1 {[%emt 0:01:27]} Bf5 {[%emt 0:00:06]} 33. Bxf5 {[%emt 0:00:24]} Kxf5 {[%emt 0:00:02][%mdl 4096] Endgame KRN-KRN} 34. Nd2 {[%emt 0:00:17] Repels Nc4} (34. Rb4 $11) 34... Re8 {[%emt 0:00:37]} (34... fxg3 $17 35. Rf1+ Kg4) 35. Rb4 {[%emt 0:00:11]} fxg3 {[%emt 0:00:12]} 36. Ne4 {[%emt 0:00:13]} ({White should try} 36. Kf1 $15) 36... Rg8 $17 {[%emt 0:00:02]} 37. Nd2 {[%emt 0:00:35] [#]} Rg4 $1 {[%emt 0:00:04]} 38. Nf1 {[%emt 0:00:02]} (38. Kf1 $17) 38... Rxb4 $19 {[%emt 0:00:22]} (38... Nc4 39. Rxc4 Rxc4 40. Ne3+ (40. Nxg3+ $2 {loses.} Kg6 $19) 40... Ke4 41. Nxc4 $18) 39. cxb4 {[%emt 0:00:03] [#]} Kf4 $1 {[%emt 0:00:12]} 40. bxa5 {[%emt 0:00:04]} (40. Nd2 $19 e4 (40... Nb7 41. a5 $14) 41. Kf1 (41. bxa5 e3 $19)) 40... e4 {[%emt 0:00:01] Black mates.} 41. Nd2 {[%emt 0:00:04]} e3 {[%emt 0:00:02]} 42. Nf3 {[%emt 0:01:35]} e2 {[%emt 0:00:02] Weighted Error Value: White=0.49/Black=0.18 (very precise) Missed win: 	--- 	Black=1 Mistake: 	White=9 	Black=2 Inaccurate: 	White=2 	--- OK: 	White=6 	Black=10 Best: 	White=1 	Black=6 Strong: 	White=1 	Black=2} 0-1